[Event "Late-Titled-Tuesday-Blitz-May-14-2024"]
[Site "Chess.com"]
[Date "2024.05.14"]
[Round "1"]
[White "GMMikhailKazakov"]
[Black "Kacparov"]
[Result "0-1"]
[WhiteElo "2519"]
[BlackElo "2922"]
[TimeControl "180+1"]
[EndTime "14:08:55 PDT"]
[Termination "Kacparov won by checkmate"]

1. d4 {[%clk 0:02:58.4]} 1... Nf6 {[%clk 0:02:59.8]} 2. c4 {[%clk 0:02:56.7]}
2... e6 {[%clk 0:03:00.1]} 3. Nc3 {[%clk 0:02:54.9]} 3... Bb4 {[%clk 0:03:00.4]}
4. e3 {[%clk 0:02:55.1]} 4... O-O {[%clk 0:03:00.2]} 5. Bd3 {[%clk 0:02:55]}
5... d5 {[%clk 0:03:00.4]} 6. Nf3 {[%clk 0:02:52.6]} 6... c5 {[%clk 0:02:59.9]}
7. O-O {[%clk 0:02:51.9]} 7... dxc4 {[%clk 0:02:57.5]} 8. Bxc4 {[%clk
0:02:51.1]} 8... Nc6 {[%clk 0:02:57.8]} 9. a3 {[%clk 0:02:42.4]} 9... Bxc3
{[%clk 0:02:56.3]} 10. bxc3 {[%clk 0:02:43.3]} 10... b6 {[%clk 0:02:54.1]} 11.
Bd3 {[%clk 0:02:15.3]} 11... h6 {[%clk 0:02:12.8]} 12. Bb2 {[%clk 0:02:12.1]}
12... Bb7 {[%clk 0:02:04.6]} 13. e4 {[%clk 0:02:09.3]} 13... cxd4 {[%clk
0:01:57.1]} 14. cxd4 {[%clk 0:02:08.4]} 14... Rc8 {[%clk 0:01:53.9]} 15. Qe2
{[%clk 0:02:03.9]} 15... Na5 {[%clk 0:01:45]} 16. Rad1 {[%clk 0:02:01.3]} 16...
Qe7 {[%clk 0:01:40.9]} 17. Bb1 {[%clk 0:01:27.4]} 17... Rfd8 {[%clk 0:01:39.6]}
18. Qd3 {[%clk 0:01:14.1]} 18... Bxe4 {[%clk 0:01:37.5]} 19. Qe2 {[%clk
0:01:04.8]} 19... Bxb1 {[%clk 0:01:37.3]} 20. Rxb1 {[%clk 0:01:05.7]} 20... Nc4
{[%clk 0:01:35.7]} 21. Bc1 {[%clk 0:01:05.5]} 21... Nxa3 {[%clk 0:01:32.1]} 22.
Rb3 {[%clk 0:00:54.2]} 22... Nc4 {[%clk 0:01:31.8]} 23. Ne5 {[%clk 0:00:51.8]}
23... Rxd4 {[%clk 0:01:26.6]} 24. Nxc4 {[%clk 0:00:33.3]} 24... Rdxc4 {[%clk
0:01:26.2]} 25. Bb2 {[%clk 0:00:31.5]} 25... Rc2 {[%clk 0:01:06.3]} 26. Qe5
{[%clk 0:00:21.6]} 26... Qc5 {[%clk 0:01:04.3]} 27. Qg3 {[%clk 0:00:19.1]} 27...
Qg5 {[%clk 0:01:03.2]} 28. Qd6 {[%clk 0:00:10.6]} 28... Ne4 {[%clk 0:00:49.7]}
29. Qd4 {[%clk 0:00:10.3]} 29... R2c4 {[%clk 0:00:45.4]} 30. Qd7 {[%clk
0:00:07.7]} 30... R4c7 {[%clk 0:00:41.8]} 31. Qd4 {[%clk 0:00:07]} 31... Rc4
{[%clk 0:00:30.7]} 32. Qd7 {[%clk 0:00:06.8]} 32... Qd5 {[%clk 0:00:21.3]} 33.
Qxa7 {[%clk 0:00:04]} 33... b5 {[%clk 0:00:21.1]} 34. Rf3 {[%clk 0:00:03.1]}
34... R4c7 {[%clk 0:00:18.5]} 35. Qa1 {[%clk 0:00:03]} 35... f6 {[%clk
0:00:17.3]} 36. h3 {[%clk 0:00:02.4]} 36... e5 {[%clk 0:00:17.2]} 37. Re3 {[%clk
0:00:02.7]} 37... Nd6 {[%clk 0:00:16.9]} 38. Ree1 {[%clk 0:00:02.5]} 38... Nc4
{[%clk 0:00:17.1]} 39. Bc3 {[%clk 0:00:02.9]} 39... Nd6 {[%clk 0:00:16.6]} 40.
Rd1 {[%clk 0:00:03.3]} 40... Qe6 {[%clk 0:00:16.1]} 41. Bb4 {[%clk 0:00:03.6]}
41... Nc4 {[%clk 0:00:16.1]} 42. Qa2 {[%clk 0:00:03.1]} 42... Rd7 {[%clk
0:00:16.2]} 43. Qe2 {[%clk 0:00:03.2]} 43... Rcd8 {[%clk 0:00:14.5]} 44. Rb1
{[%clk 0:00:03.2]} 44... Qf5 {[%clk 0:00:13.7]} 45. f3 {[%clk 0:00:02.9]} 45...
Qd3 {[%clk 0:00:13.6]} 46. Qxd3 {[%clk 0:00:03]} 46... Rxd3 {[%clk 0:00:14.5]}
47. Rfe1 {[%clk 0:00:03.5]} 47... R3d5 {[%clk 0:00:14.5]} 48. Bc3 {[%clk
0:00:03.1]} 48... Kf7 {[%clk 0:00:14.7]} 49. Bb4 {[%clk 0:00:03.1]} 49... Ke6
{[%clk 0:00:15.1]} 50. Kf2 {[%clk 0:00:03.4]} 50... g5 {[%clk 0:00:15.3]} 51.
Re2 {[%clk 0:00:03.8]} 51... h5 {[%clk 0:00:15.8]} 52. Rc2 {[%clk 0:00:04]}
52... h4 {[%clk 0:00:16.3]} 53. Be1 {[%clk 0:00:04]} 53... Ra8 {[%clk
0:00:15.3]} 54. Ke2 {[%clk 0:00:04.2]} 54... Rad8 {[%clk 0:00:15.2]} 55. Rb3
{[%clk 0:00:04.3]} 55... Kf5 {[%clk 0:00:14.8]} 56. Rb1 {[%clk 0:00:04.4]} 56...
Na3 {[%clk 0:00:14.7]} 57. Rcb2 {[%clk 0:00:03.9]} 57... Nxb1 {[%clk 0:00:15]}
58. Rxb1 {[%clk 0:00:04.8]} 58... Rc8 {[%clk 0:00:15.2]} 59. Bb4 {[%clk
0:00:04.6]} 59... Rc2+ {[%clk 0:00:15.3]} 60. Kf1 {[%clk 0:00:05.5]} 60... Rc4
{[%clk 0:00:15.1]} 61. Be1 {[%clk 0:00:05.5]} 61... Ke6 {[%clk 0:00:15.3]} 62.
Ke2 {[%clk 0:00:05.9]} 62... f5 {[%clk 0:00:15.7]} 63. Kf1 {[%clk 0:00:06.5]}
63... e4 {[%clk 0:00:16.1]} 64. fxe4 {[%clk 0:00:05.3]} 64... Rxe4 {[%clk
0:00:17]} 65. Rc1 {[%clk 0:00:05.1]} 65... f4 {[%clk 0:00:17]} 66. Rc6+ {[%clk
0:00:04.6]} 66... Kf5 {[%clk 0:00:17.4]} 67. Rc8 {[%clk 0:00:04.1]} 67... Rd1
{[%clk 0:00:15.6]} 68. Rf8+ {[%clk 0:00:04]} 68... Kg6 {[%clk 0:00:15.8]} 69.
Kf2 {[%clk 0:00:02.7]} 69... Rdxe1 {[%clk 0:00:16]} 70. Rg8+ {[%clk 0:00:02.2]}
70... Kf6 {[%clk 0:00:15.7]} 71. Rb8 {[%clk 0:00:03.1]} 71... R1e2+ {[%clk
0:00:15.7]} 72. Kf1 {[%clk 0:00:03]} 72... Rb2 {[%clk 0:00:15.8]} 73. Rb6+
{[%clk 0:00:02.6]} 73... Kf5 {[%clk 0:00:16.3]} 74. Rb8 {[%clk 0:00:02.7]} 74...
Rc4 {[%clk 0:00:16.6]} 75. Kg1 {[%clk 0:00:01.3]} 75... Rcc2 {[%clk 0:00:16.4]}
76. Kh1 {[%clk 0:00:02.2]} 76... b4 {[%clk 0:00:15.8]} 77. Rb5+ {[%clk 0:00:02]}
77... Ke4 {[%clk 0:00:16.2]} 78. Rxg5 {[%clk 0:00:01.7]} 78... f3 {[%clk
0:00:16.4]} 79. Rg4+ {[%clk 0:00:00.9]} 79... Ke3 {[%clk 0:00:16.5]} 80. gxf3
{[%clk 0:00:01.5]} 80... Rb1+ {[%clk 0:00:16.4]} 81. Rg1 {[%clk 0:00:02.4]}
81... Rxg1+ {[%clk 0:00:16.5]} 82. Kxg1 {[%clk 0:00:03.3]} 82... b3 {[%clk
0:00:17.1]} 83. Kf1 {[%clk 0:00:03.9]} 83... b2 {[%clk 0:00:17.7]} 84. Kg1
{[%clk 0:00:04.2]} 84... b1=Q# {[%clk 0:00:18.2]} 0-1

[Event "Late-Titled-Tuesday-Blitz-May-14-2024"]
[Site "Chess.com"]
[Date "2024.05.14"]
[Round "1"]
[White "Naruto-K"]
[Black "Szparu"]
[Result "0-1"]
[WhiteElo "2476"]
[BlackElo "2863"]
[TimeControl "180+1"]
[EndTime "14:08:59 PDT"]
[Termination "Szparu won by checkmate"]

1. Nf3 {[%clk 0:02:55.9]} 1... d5 {[%clk 0:02:59.2]} 2. c4 {[%clk 0:02:55.4]}
2... c6 {[%clk 0:03:00.1]} 3. g3 {[%clk 0:02:55]} 3... Nf6 {[%clk 0:03:00.5]} 4.
Bg2 {[%clk 0:02:55.2]} 4... Bf5 {[%clk 0:03:01.1]} 5. O-O {[%clk 0:02:54.4]}
5... e6 {[%clk 0:03:01.7]} 6. b3 {[%clk 0:02:52.2]} 6... Nbd7 {[%clk 0:03:02.1]}
7. Bb2 {[%clk 0:02:51.8]} 7... h6 {[%clk 0:03:02.5]} 8. d3 {[%clk 0:02:52.1]}
8... Bh7 {[%clk 0:03:02.9]} 9. Nbd2 {[%clk 0:02:52.8]} 9... Be7 {[%clk
0:03:03.5]} 10. Rc1 {[%clk 0:02:53.1]} 10... O-O {[%clk 0:03:03.9]} 11. Rc2
{[%clk 0:02:53.5]} 11... b5 {[%clk 0:03:02.6]} 12. Qa1 {[%clk 0:02:50.7]} 12...
Qb6 {[%clk 0:03:01.6]} 13. Rfc1 {[%clk 0:02:44.1]} 13... b4 {[%clk 0:02:58.7]}
14. cxd5 {[%clk 0:02:41.4]} 14... cxd5 {[%clk 0:02:58.5]} 15. Rc6 {[%clk
0:02:40.4]} 15... Qa5 {[%clk 0:02:53.7]} 16. Nd4 {[%clk 0:02:15.4]} 16... Rfe8
{[%clk 0:02:51.1]} 17. Bh3 {[%clk 0:02:01.3]} 17... Ne5 {[%clk 0:02:48.9]} 18.
R6c2 {[%clk 0:01:34.4]} 18... Bd6 {[%clk 0:02:45.6]} 19. Nxe6 {[%clk 0:00:48.4]}
19... Neg4 {[%clk 0:02:30.9]} 20. Nd4 {[%clk 0:00:46.2]} 20... h5 {[%clk
0:02:21.4]} 21. N2f3 {[%clk 0:00:45.7]} 21... Bf8 {[%clk 0:02:13.9]} 22. Bg2
{[%clk 0:00:42.9]} 22... Qb6 {[%clk 0:02:09.5]} 23. Rc6 {[%clk 0:00:42]} 23...
Qd8 {[%clk 0:02:04.7]} 24. h3 {[%clk 0:00:31.5]} 24... Nh6 {[%clk 0:02:04.3]}
25. R1c2 {[%clk 0:00:27.6]} 25... a5 {[%clk 0:02:04.2]} 26. Nb5 {[%clk
0:00:23.9]} 26... a4 {[%clk 0:01:30.6]} 27. bxa4 {[%clk 0:00:18.8]} 27... Rxa4
{[%clk 0:01:28.6]} 28. Qd1 {[%clk 0:00:18.8]} 28... Ra5 {[%clk 0:00:56.2]} 29.
Nc7 {[%clk 0:00:15.3]} 29... Re7 {[%clk 0:00:50.5]} 30. Bxf6 {[%clk 0:00:15.2]}
30... gxf6 {[%clk 0:00:51]} 31. Nd4 {[%clk 0:00:14.5]} 31... Rd7 {[%clk
0:00:46.3]} 32. Qc1 {[%clk 0:00:13.6]} 32... Nf5 {[%clk 0:00:42.1]} 33. Nxf5
{[%clk 0:00:13.5]} 33... Bxf5 {[%clk 0:00:43]} 34. Kh2 {[%clk 0:00:14]} 34... h4
{[%clk 0:00:40.4]} 35. Qf4 {[%clk 0:00:13.7]} 35... Bg6 {[%clk 0:00:38.2]} 36.
Qxh4 {[%clk 0:00:13.7]} 36... d4 {[%clk 0:00:30.6]} 37. Qf4 {[%clk 0:00:07.4]}
37... Bd6 {[%clk 0:00:29.2]} 38. Qf3 {[%clk 0:00:07.8]} 38... Rxc7 {[%clk
0:00:26]} 39. Rxc7 {[%clk 0:00:07.6]} 39... Bxc7 {[%clk 0:00:26.9]} 40. Qc6
{[%clk 0:00:07.6]} 40... Ra7 {[%clk 0:00:18.7]} 41. Bf3 {[%clk 0:00:08]} 41...
Kg7 {[%clk 0:00:18.5]} 42. h4 {[%clk 0:00:08.3]} 42... Qd6 {[%clk 0:00:17.9]}
43. Qc4 {[%clk 0:00:07.8]} 43... Bb8 {[%clk 0:00:13.6]} 44. Qc8 {[%clk
0:00:07.1]} 44... Ra5 {[%clk 0:00:12.8]} 45. Kg2 {[%clk 0:00:06.2]} 45... Bf5
{[%clk 0:00:11.8]} 46. Qc4 {[%clk 0:00:05.9]} 46... Be6 {[%clk 0:00:12.3]} 47.
Qc6 {[%clk 0:00:04.9]} 47... Qxc6 {[%clk 0:00:12.8]} 48. Rxc6 {[%clk 0:00:05.5]}
48... Rxa2 {[%clk 0:00:12.3]} 49. Rb6 {[%clk 0:00:06.2]} 49... Be5 {[%clk
0:00:11.3]} 50. Rxb4 {[%clk 0:00:06.8]} 50... Ra7 {[%clk 0:00:10.7]} 51. Rb6
{[%clk 0:00:06.9]} 51... Rd7 {[%clk 0:00:10.7]} 52. Rc6 {[%clk 0:00:07.3]} 52...
Rc7 {[%clk 0:00:10.9]} 53. Rb6 {[%clk 0:00:07.4]} 53... Rc2 {[%clk 0:00:10.3]}
54. Rb5 {[%clk 0:00:07.3]} 54... Bd6 {[%clk 0:00:10]} 55. Rb6 {[%clk 0:00:07.7]}
55... Be5 {[%clk 0:00:09.7]} 56. Rb4 {[%clk 0:00:08.2]} 56... f5 {[%clk
0:00:09.6]} 57. Rb5 {[%clk 0:00:08]} 57... Bf6 {[%clk 0:00:10.2]} 58. Rb4 {[%clk
0:00:07.8]} 58... f4 {[%clk 0:00:10.4]} 59. Rb5 {[%clk 0:00:05.7]} 59... fxg3
{[%clk 0:00:10.6]} 60. Kxg3 {[%clk 0:00:06.4]} 60... Be7 {[%clk 0:00:10.5]} 61.
Ra5 {[%clk 0:00:06.5]} 61... Bd6+ {[%clk 0:00:10.7]} 62. Kg2 {[%clk 0:00:07.3]}
62... Rc1 {[%clk 0:00:10.6]} 63. h5 {[%clk 0:00:07.5]} 63... Bf4 {[%clk
0:00:09.9]} 64. Ra4 {[%clk 0:00:07.2]} 64... Be5 {[%clk 0:00:09.5]} 65. Ra5
{[%clk 0:00:07.9]} 65... Kf6 {[%clk 0:00:09]} 66. Ra6 {[%clk 0:00:07.8]} 66...
Rc8 {[%clk 0:00:08.9]} 67. Ra5 {[%clk 0:00:08]} 67... Rg8+ {[%clk 0:00:09.2]}
68. Kf1 {[%clk 0:00:08]} 68... Bh3+ {[%clk 0:00:08.9]} 69. Ke1 {[%clk
0:00:08.5]} 69... Bf4 {[%clk 0:00:08.1]} 70. Kd1 {[%clk 0:00:08.9]} 70... Rg1+
{[%clk 0:00:07.6]} 71. Kc2 {[%clk 0:00:09.1]} 71... Rg5 {[%clk 0:00:07.9]} 72.
Ra6+ {[%clk 0:00:09.1]} 72... Kg7 {[%clk 0:00:08.4]} 73. Ra7 {[%clk 0:00:09.4]}
73... Rc5+ {[%clk 0:00:08.3]} 74. Kb3 {[%clk 0:00:10]} 74... Be6+ {[%clk
0:00:08.7]} 75. Kb4 {[%clk 0:00:10.3]} 75... Bd6 {[%clk 0:00:08.8]} 76. Ka4
{[%clk 0:00:10.8]} 76... Rc1 {[%clk 0:00:06.2]} 77. Ra5 {[%clk 0:00:09.8]} 77...
Ra1+ {[%clk 0:00:06.1]} 78. Kb5 {[%clk 0:00:10.3]} 78... Bd7+ {[%clk 0:00:06.5]}
79. Ka6 {[%clk 0:00:10.9]} 79... Bc8+ {[%clk 0:00:06.4]} 80. Kb5 {[%clk
0:00:11.5]} 80... Bd7+ {[%clk 0:00:06.7]} 81. Ka6 {[%clk 0:00:12.1]} 81... Rb1
{[%clk 0:00:06.7]} 82. Ra2 {[%clk 0:00:11]} 82... Bc8+ {[%clk 0:00:06.6]} 83.
Ka5 {[%clk 0:00:11.4]} 83... Bc7+ {[%clk 0:00:06.7]} 84. Ka4 {[%clk 0:00:10.6]}
84... Bd7+ {[%clk 0:00:07.2]} 85. Ka3 {[%clk 0:00:11.2]} 85... Bd6# {[%clk
0:00:07.6]} 0-1

[Event "Late-Titled-Tuesday-Blitz-May-14-2024"]
[Site "Chess.com"]
[Date "2024.05.14"]
[Round "1"]
[White "Evan_Attaker"]
[Black "chess_sharparchitect"]
[Result "0-1"]
[WhiteElo "2648"]
[BlackElo "2357"]
[TimeControl "180+1"]
[EndTime "14:09:00 PDT"]
[Termination "chess_sharparchitect won on time"]

1. Nf3 {[%clk 0:02:54.1]} 1... d5 {[%clk 0:02:59.6]} 2. c4 {[%clk 0:02:51]} 2...
Nf6 {[%clk 0:02:55.4]} 3. cxd5 {[%clk 0:02:50.8]} 3... Nxd5 {[%clk 0:02:55.3]}
4. g3 {[%clk 0:02:44.9]} 4... c5 {[%clk 0:02:50.6]} 5. Bg2 {[%clk 0:02:44.9]}
5... Nc6 {[%clk 0:02:50.3]} 6. O-O {[%clk 0:02:45.1]} 6... e5 {[%clk 0:02:37.8]}
7. d3 {[%clk 0:02:44.1]} 7... Be7 {[%clk 0:02:37.6]} 8. Nc3 {[%clk 0:02:43.4]}
8... Nc7 {[%clk 0:02:30.4]} 9. Bd2 {[%clk 0:02:39.1]} 9... O-O {[%clk 0:02:30]}
10. a3 {[%clk 0:02:39.2]} 10... Be6 {[%clk 0:02:29.6]} 11. Rc1 {[%clk
0:02:38.6]} 11... f6 {[%clk 0:02:09.7]} 12. Ne4 {[%clk 0:02:37.7]} 12... Na6
{[%clk 0:01:59]} 13. Qa4 {[%clk 0:02:21.3]} 13... Rc8 {[%clk 0:01:48.7]} 14. Be3
{[%clk 0:02:18.8]} 14... Nd4 {[%clk 0:01:28.4]} 15. Bxd4 {[%clk 0:02:18.1]}
15... cxd4 {[%clk 0:01:15.8]} 16. h4 {[%clk 0:02:02.7]} 16... Qd7 {[%clk
0:01:09.2]} 17. Qxd7 {[%clk 0:02:00.8]} 17... Bxd7 {[%clk 0:01:09.3]} 18. b4
{[%clk 0:01:56.8]} 18... Rxc1 {[%clk 0:00:55.2]} 19. Rxc1 {[%clk 0:01:56]} 19...
Rc8 {[%clk 0:00:55.7]} 20. Rxc8+ {[%clk 0:01:55.7]} 20... Bxc8 {[%clk
0:00:55.5]} 21. Ned2 {[%clk 0:01:49.5]} 21... Nc7 {[%clk 0:00:47.7]} 22. Ne1
{[%clk 0:01:45.9]} 22... b6 {[%clk 0:00:42.2]} 23. Nc2 {[%clk 0:01:43.6]} 23...
Be6 {[%clk 0:00:41.1]} 24. Kf1 {[%clk 0:01:39.2]} 24... Kf7 {[%clk 0:00:40.7]}
25. e3 {[%clk 0:01:39.3]} 25... dxe3 {[%clk 0:00:38.4]} 26. Nxe3 {[%clk
0:01:40.2]} 26... g6 {[%clk 0:00:36.1]} 27. Nc2 {[%clk 0:01:37.3]} 27... Bf5
{[%clk 0:00:33.7]} 28. Ke2 {[%clk 0:01:35.4]} 28... h5 {[%clk 0:00:27.5]} 29.
Ne3 {[%clk 0:01:32.4]} 29... Be6 {[%clk 0:00:27.4]} 30. Ndc4 {[%clk 0:01:26.3]}
30... Nb5 {[%clk 0:00:25.2]} 31. Nc2 {[%clk 0:01:24]} 31... Nc3+ {[%clk
0:00:21.6]} 32. Kd2 {[%clk 0:01:22.2]} 32... Nd5 {[%clk 0:00:21.1]} 33. b5
{[%clk 0:01:16.6]} 33... Nc7 {[%clk 0:00:20]} 34. a4 {[%clk 0:01:17.1]} 34...
Nd5 {[%clk 0:00:19.4]} 35. d4 {[%clk 0:01:13.3]} 35... exd4 {[%clk 0:00:17]} 36.
Nxd4 {[%clk 0:01:14.2]} 36... Bb4+ {[%clk 0:00:17.1]} 37. Kd3 {[%clk 0:01:12.9]}
37... Ne7 {[%clk 0:00:15.9]} 38. Be4 {[%clk 0:00:33]} 38... f5 {[%clk
0:00:12.7]} 39. Bg2 {[%clk 0:00:28.8]} 39... Bc5 {[%clk 0:00:12.8]} 40. Ne5+
{[%clk 0:00:26.2]} 40... Kf6 {[%clk 0:00:12.4]} 41. Nef3 {[%clk 0:00:22.6]}
41... Bd5 {[%clk 0:00:12]} 42. Ke2 {[%clk 0:00:12.8]} 42... Be4 {[%clk
0:00:11.9]} 43. Bf1 {[%clk 0:00:12.5]} 43... Nd5 {[%clk 0:00:11.1]} 44. Nb3
{[%clk 0:00:10.6]} 44... Bb4 {[%clk 0:00:09.9]} 45. Nfd2 {[%clk 0:00:10.1]}
45... Nc3+ {[%clk 0:00:09.4]} 46. Ke3 {[%clk 0:00:09.3]} 46... Bc5+ {[%clk
0:00:07.9]} 47. Nxc5 {[%clk 0:00:08.6]} 47... bxc5 {[%clk 0:00:08]} 48. Nxe4+
{[%clk 0:00:09.1]} 48... Nxe4 {[%clk 0:00:07.9]} 49. Bg2 {[%clk 0:00:09.7]}
49... Nd6 {[%clk 0:00:07.7]} 50. Kd3 {[%clk 0:00:09.9]} 50... Ke5 {[%clk
0:00:07.8]} 51. Kc3 {[%clk 0:00:10.4]} 51... f4 {[%clk 0:00:07.7]} 52. Bc6
{[%clk 0:00:09.8]} 52... fxg3 {[%clk 0:00:07.7]} 53. fxg3 {[%clk 0:00:10.7]}
53... Kf6 {[%clk 0:00:07]} 54. a5 {[%clk 0:00:11.1]} 54... Ke7 {[%clk
0:00:06.6]} 55. b6 {[%clk 0:00:11.3]} 55... axb6 {[%clk 0:00:06.4]} 56. axb6
{[%clk 0:00:12.2]} 56... Kd8 {[%clk 0:00:06]} 57. Kd3 {[%clk 0:00:07.7]} 57...
Kc8 {[%clk 0:00:06.1]} 58. Ke3 {[%clk 0:00:07.6]} 58... Nc4+ {[%clk 0:00:05.8]}
59. Kf4 {[%clk 0:00:06]} 59... Nxb6 {[%clk 0:00:05.8]} 60. Kg5 {[%clk
0:00:06.1]} 60... Nc4 {[%clk 0:00:06.2]} 61. Be4 {[%clk 0:00:04.9]} 61... Ne5
{[%clk 0:00:06.1]} 62. Kf6 {[%clk 0:00:04.9]} 62... Ng4+ {[%clk 0:00:05.4]} 63.
Kxg6 {[%clk 0:00:04.7]} 63... Nf2 {[%clk 0:00:05.1]} 64. Bd5 {[%clk 0:00:02.3]}
64... Kd7 {[%clk 0:00:04]} 65. Kxh5 {[%clk 0:00:01.9]} 65... Kd6 {[%clk
0:00:04.2]} 66. Ba2 {[%clk 0:00:02]} 66... Ke5 {[%clk 0:00:04.3]} 0-1

[Event "Late-Titled-Tuesday-Blitz-May-14-2024"]
[Site "Chess.com"]
[Date "2024.05.14"]
[Round "1"]
[White "Ditman2007"]
[Black "laskakid"]
[Result "0-1"]
[WhiteElo "2692"]
[BlackElo "2397"]
[TimeControl "180+1"]
[EndTime "14:09:15 PDT"]
[Termination "laskakid won by checkmate"]

1. e4 {[%clk 0:03:00.9]} 1... d6 {[%clk 0:03:00]} 2. d4 {[%clk 0:02:50.2]} 2...
Nf6 {[%clk 0:03:00.1]} 3. Nc3 {[%clk 0:02:49.6]} 3... e5 {[%clk 0:03:00.2]} 4.
Nf3 {[%clk 0:02:49.4]} 4... Nbd7 {[%clk 0:02:59.2]} 5. Bc4 {[%clk 0:02:49.4]}
5... Be7 {[%clk 0:02:59.4]} 6. O-O {[%clk 0:02:49]} 6... O-O {[%clk 0:02:59.1]}
7. Re1 {[%clk 0:02:48.9]} 7... c6 {[%clk 0:02:59]} 8. a4 {[%clk 0:02:48.7]} 8...
h6 {[%clk 0:02:59.1]} 9. a5 {[%clk 0:02:46.7]} 9... Re8 {[%clk 0:02:58.6]} 10.
b3 {[%clk 0:02:40.5]} 10... Qc7 {[%clk 0:02:51.2]} 11. h3 {[%clk 0:02:17.5]}
11... exd4 {[%clk 0:02:49.2]} 12. Nxd4 {[%clk 0:02:17.3]} 12... Bf8 {[%clk
0:02:44]} 13. Bf4 {[%clk 0:02:13.2]} 13... Nc5 {[%clk 0:02:24.5]} 14. Qf3 {[%clk
0:02:07.1]} 14... Ne6 {[%clk 0:02:19.4]} 15. Nxe6 {[%clk 0:01:53.7]} 15... Bxe6
{[%clk 0:02:19.1]} 16. e5 {[%clk 0:01:54.2]} 16... Bxc4 {[%clk 0:01:40.7]} 17.
exf6 {[%clk 0:01:54]} 17... Be6 {[%clk 0:01:33.4]} 18. fxg7 {[%clk 0:01:50.8]}
18... Bxg7 {[%clk 0:01:33.3]} 19. Qg3 {[%clk 0:01:51.1]} 19... Kh7 {[%clk
0:01:20.6]} 20. Bxd6 {[%clk 0:01:50.4]} 20... Qd7 {[%clk 0:01:20.4]} 21. Rad1
{[%clk 0:01:46.6]} 21... Qd8 {[%clk 0:01:02]} 22. Ne4 {[%clk 0:01:20.7]} 22...
Qxa5 {[%clk 0:00:59.2]} 23. Nc5 {[%clk 0:01:10.8]} 23... Bf5 {[%clk 0:00:50.2]}
24. Rxe8 {[%clk 0:00:53.7]} 24... Rxe8 {[%clk 0:00:50.4]} 25. Kh2 {[%clk
0:00:41.9]} 25... Bxc2 {[%clk 0:00:47.1]} 26. Rc1 {[%clk 0:00:40.4]} 26... Bg6
{[%clk 0:00:44]} 27. Nxb7 {[%clk 0:00:39.5]} 27... Qb6 {[%clk 0:00:41.8]} 28.
Nc5 {[%clk 0:00:38.7]} 28... Bd4 {[%clk 0:00:37]} 29. Rc4 {[%clk 0:00:37.9]}
29... Bg7 {[%clk 0:00:31.8]} 30. Nd7 {[%clk 0:00:30.4]} 30... Qd8 {[%clk
0:00:29.6]} 31. Nc5 {[%clk 0:00:27.5]} 31... Qg5 {[%clk 0:00:21.5]} 32. Qxg5
{[%clk 0:00:26.7]} 32... hxg5 {[%clk 0:00:21.6]} 33. f3 {[%clk 0:00:22.7]} 33...
Rd8 {[%clk 0:00:20.5]} 34. Bg3 {[%clk 0:00:22.1]} 34... Rd2 {[%clk 0:00:19.6]}
35. Ne4 {[%clk 0:00:20.2]} 35... Bxe4 {[%clk 0:00:16.7]} 36. fxe4 {[%clk
0:00:21.1]} 36... Rb2 {[%clk 0:00:16.2]} 37. b4 {[%clk 0:00:21.2]} 37... Rb3
{[%clk 0:00:15.5]} 38. Bd6 {[%clk 0:00:20.2]} 38... Re3 {[%clk 0:00:12.2]} 39.
e5 {[%clk 0:00:20.6]} 39... Bxe5+ {[%clk 0:00:11.5]} 40. Bxe5 {[%clk 0:00:21.5]}
40... Rxe5 {[%clk 0:00:11.9]} 41. Rxc6 {[%clk 0:00:22.2]} 41... Rb5 {[%clk
0:00:11.3]} 42. Rc4 {[%clk 0:00:22.6]} 42... a5 {[%clk 0:00:10.9]} 43. bxa5
{[%clk 0:00:23.5]} 43... Rxa5 {[%clk 0:00:11.3]} 44. Kg3 {[%clk 0:00:24.4]}
44... Kg6 {[%clk 0:00:11.3]} 45. Kg4 {[%clk 0:00:24.8]} 45... Rb5 {[%clk
0:00:11]} 46. Rc6+ {[%clk 0:00:24.8]} 46... f6 {[%clk 0:00:10.7]} 47. Kf3 {[%clk
0:00:25.3]} 47... Rb3+ {[%clk 0:00:10.9]} 48. Kf2 {[%clk 0:00:25.8]} 48... Rb2+
{[%clk 0:00:11.3]} 49. Kg3 {[%clk 0:00:26.6]} 49... Rb3+ {[%clk 0:00:11.6]} 50.
Kh2 {[%clk 0:00:27.5]} 50... Rb2 {[%clk 0:00:12]} 51. Rc8 {[%clk 0:00:28.1]}
51... Rb3 {[%clk 0:00:12]} 52. Rh8 {[%clk 0:00:20.4]} 52... Ra3 {[%clk
0:00:11.6]} 53. g4 {[%clk 0:00:20.4]} 53... Ra2+ {[%clk 0:00:11.8]} 54. Kg3
{[%clk 0:00:20.8]} 54... Ra3+ {[%clk 0:00:12.2]} 55. Kg2 {[%clk 0:00:21.5]}
55... Ra2+ {[%clk 0:00:12.5]} 56. Kf3 {[%clk 0:00:22.1]} 56... Ra4 {[%clk
0:00:11]} 57. Rg8+ {[%clk 0:00:21.3]} 57... Kf7 {[%clk 0:00:10.7]} 58. Rh8
{[%clk 0:00:20.9]} 58... Kg7 {[%clk 0:00:10.9]} 59. Re8 {[%clk 0:00:19.9]} 59...
Kf7 {[%clk 0:00:11]} 60. Rb8 {[%clk 0:00:14.9]} 60... Ra3+ {[%clk 0:00:10.4]}
61. Ke4 {[%clk 0:00:15.3]} 61... Rxh3 {[%clk 0:00:09.9]} 62. Rb7+ {[%clk
0:00:13.6]} 62... Kg6 {[%clk 0:00:10]} 63. Rb8 {[%clk 0:00:14.5]} 63... Rg3
{[%clk 0:00:09.2]} 64. Rg8+ {[%clk 0:00:13.4]} 64... Kf7 {[%clk 0:00:09.3]} 65.
Rb8 {[%clk 0:00:13]} 65... Rxg4+ {[%clk 0:00:09.5]} 66. Kf3 {[%clk 0:00:13.7]}
66... Rf4+ {[%clk 0:00:09.8]} 67. Kg3 {[%clk 0:00:14.6]} 67... Kg6 {[%clk
0:00:09.8]} 68. Rg8+ {[%clk 0:00:14.9]} 68... Kf5 {[%clk 0:00:09.8]} 69. Rb8
{[%clk 0:00:15]} 69... Re4 {[%clk 0:00:09.8]} 70. Rb5+ {[%clk 0:00:15.9]} 70...
Re5 {[%clk 0:00:10]} 71. Rb4 {[%clk 0:00:16.8]} 71... Re3+ {[%clk 0:00:10]} 72.
Kf2 {[%clk 0:00:16.9]} 72... Re4 {[%clk 0:00:09.9]} 73. Rb5+ {[%clk 0:00:17.5]}
73... Kg4 {[%clk 0:00:10]} 74. Rb6 {[%clk 0:00:16.9]} 74... f5 {[%clk
0:00:10.2]} 75. Rb3 {[%clk 0:00:17.5]} 75... f4 {[%clk 0:00:10.4]} 76. Kg2
{[%clk 0:00:16.9]} 76... Ra4 {[%clk 0:00:10.3]} 77. Rb2 {[%clk 0:00:17]} 77...
Ra3 {[%clk 0:00:10.4]} 78. Kf2 {[%clk 0:00:17.5]} 78... Rc3 {[%clk 0:00:10.1]}
79. Kg2 {[%clk 0:00:18]} 79... Rd3 {[%clk 0:00:10.1]} 80. Kf2 {[%clk 0:00:18.6]}
80... Ra3 {[%clk 0:00:09.6]} 81. Kg2 {[%clk 0:00:18.3]} 81... Rg3+ {[%clk
0:00:09.3]} 82. Kf2 {[%clk 0:00:18.7]} 82... Rh3 {[%clk 0:00:09.6]} 83. Kg2
{[%clk 0:00:17.6]} 83... f3+ {[%clk 0:00:09.4]} 84. Kg1 {[%clk 0:00:18.2]} 84...
Kg3 {[%clk 0:00:09.2]} 85. Rg2+ {[%clk 0:00:18.4]} 85... Kf4 {[%clk 0:00:08.5]}
86. Ra2 {[%clk 0:00:18.6]} 86... g4 {[%clk 0:00:08.4]} 87. Rb2 {[%clk
0:00:13.5]} 87... Rh5 {[%clk 0:00:07.8]} 88. Rb4+ {[%clk 0:00:10.1]} 88... Kg3
{[%clk 0:00:07.2]} 89. Rb2 {[%clk 0:00:11]} 89... Ra5 {[%clk 0:00:06.1]} 90.
Rg2+ {[%clk 0:00:10.7]} 90... Kh3 {[%clk 0:00:05.6]} 91. Rh2+ {[%clk 0:00:10.8]}
91... Kg3 {[%clk 0:00:05.7]} 92. Rg2+ {[%clk 0:00:11.7]} 92... Kf4 {[%clk
0:00:05.8]} 93. Rb2 {[%clk 0:00:12.5]} 93... Ra1+ {[%clk 0:00:05.3]} 94. Kf2
{[%clk 0:00:13.1]} 94... g3# {[%clk 0:00:05.6]} 0-1